fUSD/lending_fUSD_20250610
["ID","MTS","AMOUNT","RATE_DAILY","PERIOD"]
[365242636,1749561052352,-605.06,0.00018575,2]
[365242638,1749561052361,-669.41,0.00018575,2]
[365242640,1749561052371,-150.0,0.00018584,2]
[365242642,1749561052380,-150.0,0.00018584,2]
[365242644,1749561052389,-511.68700359,0.00018586,2]
[365242646,1749561052398,-1000.0,0.00018586,2]
[365242648,1749561052407,-1592.78811282,0.0001859,2]
[365242650,1749561052417,-375.0,0.00018604,4]
[365242652,1749561052426,-851.95286966,0.0001865,2]
[365242654,1749561052435,-1592.78811282,0.00018659,2]
[365242656,1749561052444,-3184.8723555,0.00018712,2]
[365242658,1749561052454,-1592.78811282,0.00018728,2]
[365242660,1749561052463,-490.0,0.00018739,2]
[365242662,1749561052472,-781.23,0.00018739,2]
[365242664,1749561052482,-8784.32,0.00018739,2]
[365242666,1749561052491,-600.11,0.00018739,2]
[365242668,1749561052502,-490.0,0.00018739,2]
[365242670,1749561052511,-1379.66,0.00018739,2]
[365242672,1749561052521,-1207.96,0.00018739,2]
[365242674,1749561052531,-666.07,0.00018739,2]
[365242676,1749561052540,-722.06,0.00018739,2]
[365242678,1749561052549,-490.0,0.00018739,2]
[365242680,1749561052559,-490.0,0.00018739,2]
[365242682,1749561052568,-1036.14,0.00018739,2]
[365242684,1749561052577,-1391.13,0.00018739,2]
[365242686,1749561052587,-490.0,0.00018739,2]
[365242688,1749561052596,-490.0,0.00018739,2]
[365242690,1749561052605,-490.0,0.00018739,2]
[365242692,1749561052614,-671.85,0.00018739,2]
[365242694,1749561052623,-669.41,0.00018739,2]
[365242696,1749561052632,-605.06,0.00018739,2]
[365242697,1749561052642,-1592.78811282,0.00018797,2]
[365242699,1749561052651,-973.48262456,0.00018822,2]
[365242700,1749561052661,-2086.99570971,0.00018822,2]
[365242702,1749561052670,-156.587,0.00018826,2]
[365242704,1749561052679,-215.0738,0.00018826,2]
[365242706,1749561052688,-1000.0,0.00018852,2]
[365242707,1749561052698,-1592.78811282,0.00018866,2]
[365242709,1749561052707,-158.80230005,0.00018882,2]
[365242711,1749561052717,-314.35052807,0.00018904,2]
[365242712,1749561052726,-781.23,0.00018904,2]
[365242714,1749561052735,-8784.32,0.00018904,2]
[365242716,1749561052745,-600.11,0.00018904,2]
[365242717,1749561052754,-490.0,0.00018904,2]
[365242719,1749561052763,-1379.66,0.00018904,2]
[365242721,1749561052772,-1207.96,0.00018904,2]
[365242722,1749561052781,-666.07,0.00018904,2]
[365242724,1749561052790,-722.06,0.00018904,2]
[365242726,1749561052799,-490.0,0.00018904,2]
[365242728,1749561052809,-490.0,0.00018904,2]
[365242729,1749561052818,-1036.14,0.00018904,2]
[365242731,1749561052827,-1391.13,0.00018904,2]
[365242733,1749561052837,-490.0,0.00018904,2]
[365242734,1749561052846,-490.0,0.00018904,2]
[365242736,1749561052855,-490.0,0.00018904,2]
[365242738,1749561052864,-671.85,0.00018904,2]
[365242740,1749561052873,-669.41,0.00018904,2]
[365242742,1749561052883,-605.06,0.00018904,2]
[365242743,1749561052892,-500.0,0.00018904,2]
[365242745,1749561052901,-1592.78811282,0.00018934,2]
[365242747,1749561052910,-22222.0,0.00019,2]
[365242749,1749561052919,-151.0,0.00019,7]
[365242750,1749561052929,-351.36,0.00019,7]
[365242752,1749561052938,-150.0,0.00019,2]
[365242754,1749561052947,-1112.7641155,0.00019,2]
[365242755,1749561052957,-150.0,0.00019,2]
[365242757,1749561052966,-6015.25348039,0.00019,2]
[365242759,1749561052975,-473.31,0.00019,7]
[365242761,1749561052984,-223.39,0.00019,7]
[365242762,1749561052994,-1592.78811282,0.00019003,2]
[365242764,1749561053003,-176.96,0.0001904,2]
[365242766,1749561053012,-375.0,0.00019044,5]
[365242768,1749561053021,-781.23,0.00019068,2]
[365242769,1749561053030,-8784.32,0.00019068,2]
[365242771,1749561053039,-600.11,0.00019068,2]
[365242773,1749561053048,-490.0,0.00019068,2]
[365242775,1749561053057,-1379.66,0.00019068,2]
[365242777,1749561053067,-1207.96,0.00019068,2]
[365242778,1749561053075,-666.07,0.00019068,2]
[365242780,1749561053084,-722.06,0.00019068,2]
[365242782,1749561053094,-490.0,0.00019068,2]
[365242784,1749561053104,-490.0,0.00019068,2]
[365242786,1749561053113,-1036.14,0.00019068,2]
[365242787,1749561053123,-1391.13,0.00019068,2]
[365242789,1749561053134,-490.0,0.00019068,2]
[365242791,1749561053143,-490.0,0.00019068,2]
[365242793,1749561053153,-490.0,0.00019068,2]
[365242795,1749561053163,-671.85,0.00019068,2]
[365242796,1749561053172,-669.41,0.00019068,2]
[365242798,1749561053182,-605.06,0.00019068,2]
[365242800,1749561053192,-1592.78811282,0.00019072,2]
[365242802,1749561053201,-1900.0,0.000191,6]
[365242803,1749561053210,-3184.8723555,0.00019108,2]
[365242805,1749561053220,-354.51,0.00019122,2]
[365242807,1749561053229,-851.95286966,0.00019133,2]
[365242809,1749561053238,-1500.0,0.00019134,2]
[365242811,1749561053248,-1592.78811282,0.00019141,2]
[365242813,1749561053258,-2486.71,0.00019178,2]
[365242814,1749561053268,-2486.71,0.00019178,2]
[365242816,1749561053277,-2486.71,0.00019178,2]
[365242818,1749561053287,-2486.71,0.00019178,2]
[365242820,1749561053297,-2486.71,0.00019178,2]
[365242821,1749561053306,-2486.71,0.00019178,2]
[365242823,1749561053315,-2486.71,0.00019178,2]
[365242825,1749561053325,-2486.71,0.00019178,2]
[365242827,1749561053334,-2486.71,0.00019178,2]
[365242829,1749561053343,-2486.71,0.00019178,2]
[365242831,1749561053352,-2486.71,0.00019178,2]
[365242832,1749561053362,-2486.71,0.00019178,2]
[365242834,1749561053371,-2486.71,0.00019178,2]
[365242836,1749561053380,-2486.71,0.00019178,2]
[365242838,1749561053389,-2486.71,0.00019178,2]
[365242840,1749561053398,-2486.71,0.00019178,2]
[365242841,1749561053407,-2486.71,0.00019178,2]
[365242843,1749561053416,-563.97928574,0.00019178,2]
[365242845,1749561053425,-500.0,0.00019178,2]
[365242847,1749561053434,-500.0,0.00019178,2]
[365242848,1749561053443,-500.0,0.00019178,2]
[365242850,1749561053453,-500.0,0.00019178,2]
[365242852,1749561053462,-500.0,0.00019178,2]
[365242854,1749561053471,-500.0,0.00019178,2]
[365242856,1749561053480,-309.50832698,0.00019178,2]
[365242857,1749561053490,-151.0,0.00019178,2]
[365242859,1749561053500,-270.08,0.00019178,2]
[365242861,1749561053510,-973.48262456,0.00019181,2]
[365242863,1749561053519,-2086.99570971,0.00019182,2]
[365242865,1749561053529,-2277.51,0.000192,2]
[365242866,1749561053539,-2800.0,0.000192,7]
[365242868,1749561053548,-1592.78811282,0.0001921,2]
[365242874,1749561053603,-851.95286966,0.00019229,2]
[365242876,1749561053613,-781.23,0.00019232,2]
[365242878,1749561053623,-8784.32,0.00019232,2]
[365242880,1749561053633,-600.11,0.00019232,2]
[365242882,1749561053642,-490.0,0.00019232,2]
[365242884,1749561053652,-1379.66,0.00019232,2]
[365242886,1749561053661,-2486.71,0.00019232,2]
[365242888,1749561053671,-1207.96,0.00019232,2]
[365242890,1749561053680,-666.07,0.00019232,2]
[365242892,1749561053689,-722.06,0.00019232,2]
[365242894,1749561053698,-187.55,0.00019232,2]
[365242896,1749561053707,-490.0,0.00019232,2]
[365242898,1749561053717,-1036.14,0.00019232,2]
[365242900,1749561053727,-1391.13,0.00019232,2]
[365242902,1749561053736,-312.64,0.00019232,2]
[365242904,1749561053745,-490.0,0.00019232,2]
[365242906,1749561053754,-490.0,0.00019232,2]
[365242908,1749561053765,-671.85,0.00019232,2]
[365242909,1749561053774,-669.41,0.00019232,2]
[365242912,1749561053785,-605.06,0.00019232,2]
[365242913,1749561053794,-500.0,0.0001927,2]
[365242915,1749561053804,-1592.78811282,0.00019279,2]
[365242918,1749561053814,-3800.0,0.000193,7]
[365242920,1749561053824,-169.17,0.00019344,2]
[365242922,1749561053834,-1592.78811282,0.00019348,2]
[365242924,1749561053843,-158.80230005,0.00019391,2]
[365242925,1749561053853,-781.23,0.00019397,2]
[365242927,1749561053863,-8784.32,0.00019397,2]
[365242929,1749561053872,-600.11,0.00019397,2]
[365242931,1749561053882,-490.0,0.00019397,2]
[365242933,1749561053891,-1379.66,0.00019397,2]
[365242935,1749561053901,-2486.71,0.00019397,2]
[365242937,1749561053911,-1207.96,0.00019397,2]
[365242939,1749561053919,-666.07,0.00019397,2]
[365242941,1749561053929,-722.06,0.00019397,2]
[365242943,1749561053938,-490.0,0.00019397,2]
[365242945,1749561053948,-1036.14,0.00019397,2]
[365242948,1749561053958,-1391.13,0.00019397,2]
[365242949,1749561053967,-415.82311869,0.00019397,2]
[365242951,1749561053976,-490.0,0.00019397,2]
[365242953,1749561053985,-671.85,0.00019397,2]
[365242955,1749561053995,-605.06,0.00019397,2]
[365242957,1749561054005,-669.41,0.00019397,2]
[365242959,1749561054014,-4800.0,0.000194,7]
[365242961,1749561054024,-1037.00642053,0.00019411,2]
[365242962,1749561054033,-325.91375356,0.00019415,2]
[365242963,1749561054042,-1592.78811282,0.00019417,2]
[365242964,1749561054051,-211.23,0.00019419,2]
[365242965,1749561054060,-375.0,0.00019485,6]
[365242966,1749561054069,-1592.78811282,0.00019486,2]
[365242967,1749561054079,-900.0,0.000195,7]
[365242968,1749561054088,-3184.8723555,0.00019503,2]
[365242969,1749561054098,-150.0,0.00019534,2]
[365242970,1749561054107,-150.0,0.00019534,2]
[365242971,1749561054116,-150.0,0.00019534,2]
[365242972,1749561054125,-500.0,0.00019534,2]
[365242973,1749561054139,-150.0,0.00019534,2]
[365242974,1749561054148,-150.0,0.00019534,2]
[365242975,1749561054157,-150.0,0.00019534,2]
[365242976,1749561054167,-150.90172218,0.00019534,2]
[365242977,1749561054177,-150.0,0.00019534,2]
[365242978,1749561054187,-200.0,0.00019534,2]
[365242979,1749561054196,-200.0,0.00019534,2]
[365242980,1749561054206,-200.0,0.00019534,2]
[365242981,1749561054215,-500.0,0.00019534,2]
[365242982,1749561054225,-587.0,0.00019535,2]
[365242983,1749561054235,-973.48262456,0.0001954,2]
[365242984,1749561054245,-2086.99570971,0.00019541,2]
[365242986,1749561054254,-1592.78811282,0.00019555,2]
[365242987,1749561054263,-781.23,0.00019561,2]
[365242988,1749561054272,-8784.32,0.00019561,2]
[365242990,1749561054281,-600.11,0.00019561,2]
[365242992,1749561054291,-490.0,0.00019561,2]
[365242994,1749561054300,-1379.66,0.00019561,2]
[365242996,1749561054311,-2486.71,0.00019561,2]
[365242998,1749561054320,-1207.96,0.00019561,2]
[365243000,1749561054330,-666.07,0.00019561,2]
[365243002,1749561054339,-722.06,0.00019561,2]
[365243004,1749561054349,-1036.14,0.00019561,2]
[365243006,1749561054358,-345.83392617,0.00019561,2]
[365243008,1749561054368,-1391.13,0.00019561,2]
[365243010,1749561054377,-490.0,0.00019561,2]
[365243012,1749561054387,-671.85,0.00019561,2]
[365243014,1749561054396,-605.06,0.00019561,2]
[365243016,1749561054405,-669.41,0.00019561,2]
[365243018,1749561054415,-150.0,0.00019561,2]
[365243020,1749561054424,-150.0,0.00019561,2]
[365243022,1749561054434,-150.0,0.00019561,2]
[365243024,1749561054443,-500.0,0.00019561,2]
[365243026,1749561054452,-150.0,0.00019561,2]
[365243028,1749561054461,-150.0,0.00019561,2]
[365243030,1749561054471,-155.8635147,0.00019561,2]
[365243032,1749561054480,-500.0,0.00019561,2]
[365243034,1749561054490,-1063.272921,0.00019568,2]
[365243036,1749561054500,-851.95286966,0.00019571,2]
[365243038,1749561054510,-150.0,0.00019589,2]
[365243039,1749561054520,-150.0,0.00019589,2]
[365243041,1749561054530,-150.0,0.00019589,2]
[365243043,1749561054539,-500.0,0.00019589,2]
[365243045,1749561054548,-150.0,0.00019589,2]
[365243047,1749561054558,-150.0,0.00019589,2]
[365243049,1749561054568,-201.33544562,0.00019589,2]
[365243051,1749561054577,-900.0,0.000196,7]
[365243053,1749561054586,-150.0,0.00019616,2]
[365243055,1749561054598,-252.89912974,0.00019616,2]
[365243057,1749561054607,-150.0,0.00019616,2]
[365243059,1749561054617,-500.0,0.00019616,2]
[365243062,1749561054626,-150.0,0.00019616,2]
[365243063,1749561054636,-150.0,0.00019616,2]
[365243065,1749561054645,-1592.78811282,0.00019624,2]
[365243068,1749561054655,-587.0,0.0001963,2]
[365243069,1749561054665,-250.0,0.00019644,2]
[365243072,1749561054675,-150.0,0.00019644,2]
[365243073,1749561054684,-500.0,0.00019644,2]
[365243075,1749561054693,-250.0,0.00019644,2]
[365243077,1749561054703,-250.0,0.00019644,2]
[365243079,1749561054713,-1000.0,0.00019649,2]
[365243081,1749561054723,-500.0,0.00019671,2]
[365243083,1749561054732,-1000.0,0.00019677,2]
[365243085,1749561054741,-2000.0,0.00019682,2]
[365243087,1749561054751,-1592.78811282,0.00019693,2]
[365243089,1749561054761,-500.0,0.00019698,2]
[365243091,1749561054771,-510.08773258,0.000197,2]
[365243093,1749561054780,-900.0,0.000197,7]
[365243095,1749561054790,-500.0,0.00019726,2]
[365243097,1749561054800,-781.23,0.00019726,2]
[365243099,1749561054809,-8784.32,0.00019726,2]
[365243101,1749561054817,-600.11,0.00019726,2]
[365243103,1749561054826,-490.0,0.00019726,2]
[365243105,1749561054835,-1379.66,0.00019726,2]
[365243107,1749561054845,-2486.71,0.00019726,2]
[365243109,1749561054854,-1207.96,0.00019726,2]
[365243111,1749561054864,-666.07,0.00019726,2]
[365243113,1749561054873,-722.06,0.00019726,2]
[365243115,1749561054883,-1036.14,0.00019726,2]
[365243117,1749561054893,-1391.13,0.00019726,2]
[365243119,1749561054902,-490.0,0.00019726,2]
[365243121,1749561054912,-671.85,0.00019726,2]
[365243123,1749561054921,-669.41,0.00019726,2]
[365243125,1749561054931,-605.06,0.00019726,2]
[365243127,1749561054940,-156.587,0.00019726,2]
[365243129,1749561054949,-500.0,0.00019753,2]
[365243131,1749561054958,-1592.78811282,0.00019762,2]
[365243133,1749561054968,-500.0,0.00019781,2]
[365243135,1749561054977,-161.20852273,0.00019799,2]
[365243137,1749561054987,-192.0,0.000198,2]
[365243139,1749561054996,-192.0,0.000198,2]
[365243141,1749561055006,-900.0,0.000198,7]
[365243143,1749561055015,-500.0,0.00019808,2]
[365243145,1749561055025,-1000.0,0.00019824,2]
[365243147,1749561055035,-2351.0,0.00019827,2]
[365243149,1749561055044,-1592.78811282,0.00019831,2]
[365243151,1749561055053,-500.0,0.00019835,2]
[365243153,1749561055064,-500.0,0.00019863,2]
[365243155,1749561055074,-5800.0,0.00019866,2]
[365243157,1749561055083,-5800.0,0.00019875,2]
[365243159,1749561055092,-5800.0,0.00019883,2]
[365243161,1749561055100,-500.0,0.00019888,2]
[365243163,1749561055110,-500.0,0.00019888,2]
[365243165,1749561055119,-500.0,0.00019888,2]
[365243167,1749561055130,-781.23,0.0001989,2]
[365243169,1749561055141,-8784.32,0.0001989,2]
[365243171,1749561055150,-600.11,0.0001989,2]
[365243173,1749561055159,-490.0,0.0001989,2]
[365243175,1749561055169,-1379.66,0.0001989,2]
[365243177,1749561055179,-2486.71,0.0001989,2]
[365243179,1749561055188,-1207.96,0.0001989,2]
[365243181,1749561055197,-666.07,0.0001989,2]
[365243183,1749561055207,-722.06,0.0001989,2]
[365243185,1749561055217,-1036.14,0.0001989,2]
[365243187,1749561055227,-1391.13,0.0001989,2]
[365243189,1749561055236,-636.88,0.0001989,2]
[365243191,1749561055247,-671.85,0.0001989,2]
[365243193,1749561055256,-669.41,0.0001989,2]
[365243195,1749561055265,-605.06,0.0001989,2]
[365243196,1749561055274,-600.0,0.0001989,2]
[365243198,1749561055284,-1092.95,0.00019891,2]
[365243200,1749561055293,-5800.0,0.00019892,2]
[365243202,1749561055303,-973.48262456,0.00019899,2]
[365243204,1749561055312,-3184.8723555,0.00019899,2]
[365243206,1749561055321,-5800.0,0.000199,2]
[365243208,1749561055330,-1765.32946007,0.000199,2]
[365243210,1749561055339,-5800.0,0.000199,2]
[365243212,1749561055348,-1592.78811282,0.000199,2]
[365243214,1749561055357,-158.80230005,0.000199,2]
[365243216,1749561055366,-2086.99570971,0.000199,2]
[365243218,1749561055375,-1451.0,0.000199,7]
[365243220,1749561055384,-375.0,0.00019925,6]
[365243221,1749561055393,-150.0,0.00019958,2]
[365243223,1749561055402,-400.0,0.0001997,2]
[365243225,1749561055411,-400.0,0.0001997,2]
[365243227,1749561055421,-400.0,0.0001997,2]
[365243229,1749561055430,-569.85434779,0.0001997,2]
[365243231,1749561055440,-286.3477586,0.00019973,4]
[365243233,1749561055449,-259.8447065,0.00019973,4]
[365243235,1749561055458,-247.91393884,0.00019973,4]
[365243237,1749561055467,-160.76017932,0.00019973,4]
[365243239,1749561055476,-248.12837743,0.00019973,4]
[365243241,1749561055485,-154.02767222,0.00019973,4]
[365243243,1749561055494,-277.25568285,0.00019973,4]
[365243245,1749561055504,-150.0,0.00019973,4]
[365243247,1749561055514,-216.08735713,0.00019973,4]
[365243249,1749561055523,-593.36043636,0.00019973,2]
[365243251,1749561055532,-500.0,0.00019973,2]
[365243253,1749561055542,-500.0,0.00019973,2]
[365243255,1749561055551,-500.0,0.00019973,2]
[365243257,1749561055561,-500.0,0.00019973,2]
[365243259,1749561055571,-213.47102298,0.00019976,2]
[365243260,1749561055579,-56774.6507471,0.00019986,2]
[365243261,1749561055588,-27623.26462714,0.00019986,2]
[365243262,1749561055805,-11800.2101255,0.00019986,2]
[365243269,1749561055933,500.0,0.00016164,2]
[365243283,1749561056059,15.35577824,0.00016438,2]
[365243290,1749561056121,-210.99998,0.00016402,2]
[365243292,1749561056132,-474.64422176,0.00016438,2]
[365243294,1749561056144,-490.0,0.00016438,2]
[365243297,1749561056154,-299.46,0.00016602,2]
[365243299,1749561056164,-395.7,0.00016767,2]
[365243301,1749561056174,-500.0,0.00017534,2]
[365243303,1749561056184,-1604.19639824,0.00017656,2]
[365243308,1749561056232,-2109.83277909,0.00017656,2]
[365243310,1749561056241,-3711.51224896,0.00019986,2]
[365243312,1749561056251,-29495.3232562,0.00019986,2]
[365243314,1749561056260,-15855.6595107,0.00019986,2]
[365243317,1749561056271,-4026.8273277,0.00019986,2]
[365243319,1749561056282,-3059.4137023,0.00019986,2]
[365243321,1749561056294,-2092.0000769,0.00019986,2]
[365243323,1749561056304,-1124.5864514,0.00019986,2]
[365243325,1749561056314,-1227.9213204,0.00019986,2]
[365243327,1749561056325,-1356.6320798,0.00019986,2]
[365243329,1749561056335,-1485.3428391,0.00019986,2]
[365243331,1749561056345,-1614.0535984,0.00019986,2]
[365243333,1749561056354,-502.6,0.00019988,2]
[365243335,1749561056364,-1163.59,0.0001999,2]
[365243337,1749561056373,-150.0,0.0001999,2]
[365243339,1749561056383,-1163.59,0.0001999,2]
[365243341,1749561056392,-1163.59,0.0001999,2]
[365243343,1749561056402,-53.80014296,0.00019998,7]
[365243345,1749561056411,-151.0,0.00019998,7]
[365243347,1749561056421,-151.0,0.00019998,7]
[365243349,1749561056430,-151.0,0.00019998,7]
[365243351,1749561056439,-151.0,0.00019998,7]
[365243353,1749561056449,-198.0,0.00019998,7]
[365243355,1749561056458,-1092.95,0.00019998,2]
[365243357,1749561056468,-500.0,0.00019998,2]
[365243359,1749561056478,-49555.37995062,0.00019999,7]
[365243361,1749561056488,-132166.18741421,0.00019999,7]
[365243362,1749561056498,-7014.8,0.00019999,2]
[365243365,1749561056510,-187.30359211,0.00019999,2]
[365243367,1749561056521,-183.12860849,0.00019999,2]
[365243369,1749561056531,-207.64340576,0.00019999,2]
[365243371,1749561056541,-526.93,0.00019999,2]
[365243373,1749561056550,-1092.95,0.00019999,2]
[365243375,1749561056560,-1092.95,0.00019999,2]
[365243377,1749561056570,-1092.95,0.00019999,2]
[365243379,1749561056579,-1092.95,0.00019999,2]
[365243381,1749561056589,-1092.95,0.00019999,2]
[365243383,1749561056598,-1092.95,0.00019999,2]
[365243385,1749561056608,-1092.95,0.00019999,2]
[365243387,1749561056617,-1092.95,0.00019999,2]
[365243389,1749561056628,-1092.95,0.00019999,2]
[365243391,1749561056638,-1092.95,0.00019999,2]
[365243393,1749561056648,-1092.95,0.00019999,2]
[365243395,1749561056658,-1092.95,0.00019999,2]
[365243397,1749561056668,-1092.95,0.00019999,2]
[365243399,1749561056677,-1092.95,0.00019999,2]
[365243401,1749561056687,-1092.95,0.00019999,2]
[365243403,1749561056696,-1092.95,0.00019999,2]
[365243405,1749561056706,-1092.95,0.00019999,2]
[365243407,1749561056716,-1092.95,0.00019999,2]
[365243409,1749561056726,-1092.95,0.00019999,2]
[365243411,1749561056736,-1092.95885751,0.00019999,2]
[365243413,1749561056746,-500.0,0.00019999,2]
[365243415,1749561056756,-500.0,0.00019999,2]
[365243417,1749561056765,-500.0,0.00019999,2]
[365243419,1749561056775,-500.0,0.00019999,2]
[365243421,1749561056785,-382.14201766,0.00019999,2]
[365243423,1749561056795,-42037.89417283,0.00019999,3]
[365243425,1749561056805,-889648.243011,0.00019999,3]
[365243428,1749561056818,-684.59354176,0.00019999,3]
[365243435,1749561056881,150.0,0.0002,30]
[365243575,1749561058361,-323.3962532,0.0001863,2]
[365243577,1749561058372,-176.6037468,0.0001863,2]
[365243579,1749561058383,-500.0,0.00019726,2]
[365243581,1749561058392,-2323.39642464,0.00019999,3]
[365243583,1749561058404,-338.5969415,0.00019999,3]
[365243586,1749561058419,-558.39203289,0.00019999,3]
[365243588,1749561058431,-7813.58242,0.00019999,3]
[365243693,1749561070320,1177.88639894,0.00038607,60]
[365243694,1749561107611,259.0,0.00038607,60]
[365243696,1749561164595,150.0,0.0002,30]
[365243697,1749561231043,2199.5,1.06e-06,60]
[365243698,1749561281248,850.32,0.00016685,120]
[365243699,1749561286185,150.0,0.0002,30]
[365243701,1749561299370,459.76,0.00013699,2]
[365243703,1749561371771,348.0,0.00015402,2]
[365243704,1749561372040,348.0,0.00015853,2]
[365243705,1749561407517,150.0,0.0002,30]
[365243706,1749561415546,2200.0,0.0001595,2]
[365243707,1749561429286,379.03,0.0001595,2]
[365243708,1749561429904,-200.0,0.00016003,2]
[365243709,1749561432094,375.0,0.00015402,2]
[365243710,1749561438923,691.44264148,0.00038616,120]
[365243711,1749561466900,18193.42975587,0.00015965,2]
[365243712,1749561466924,23245.56024413,0.00015965,2]
[365243713,1749561474763,787.79,0.00019205,30]
[365243714,1749561481838,150.0,0.00015886,2]
[365243715,1749561491758,81.63955587,0.00015402,2]
[365243716,1749561491783,293.36044413,0.00015402,2]
[365243717,1749561502692,2928.88,0.00015864,2]
[365243718,1749561507316,500.0,0.00015862,2]
[365243719,1749561525862,14898.23130763,0.00038616,60]
[365243720,1749561528999,150.0,0.0002,30]
[365243721,1749561532051,3858.28,0.00015858,2]
[365243722,1749561543845,200.0,0.00015857,2]
[365243723,1749561565297,176.97,0.00012699,2]
[365243724,1749561599728,332.05,0.00015832,2]
[365243725,1749561621733,15187.65935587,0.00015872,2]
[365243726,1749561621756,23477.1998,0.00015872,2]
[365243727,1749561621779,5185.65084413,0.00015872,2]
[365243728,1749561645675,250.0,0.00015824,2]
[365243729,1749561650403,150.0,0.0002,30]
[365243730,1749561661993,179.6,0.00015864,2]
[365243731,1749561723351,-324.2948583,0.00016015,2]
[365243732,1749561728145,-289.79592813,0.00016015,2]
[365243733,1749561731696,341.0,0.00015303,2]
[365243734,1749561731777,-210.2144707,0.00016015,2]
[365243735,1749561731967,341.0,0.00015755,2]
[365243736,1749561732424,17179.94895587,0.00015971,2]
[365243737,1749561732447,6720.05104413,0.00015971,2]
[365243738,1749561734194,-264.45423705,0.00016015,2]
[365243739,1749561736367,-162.04501629,0.00016015,2]
[365243740,1749561738277,-198.25206307,0.00016015,2]
[365243741,1749561741033,-272.368969,0.00016015,2]
[365243742,1749561744684,-256.2396173,0.00016015,2]
[365243743,1749561748685,-106.83484016,0.00016015,2]
[365243744,1749561771892,150.0,0.0002,30]
[365243746,1749561799375,323.29,0.00015939,2]
[365243747,1749561812563,200.0,0.00015915,2]
[365243751,1749561893316,150.0,0.0002,30]
[365243752,1749561908208,1478.44661857,0.00038582,90]
[365243753,1749561909582,766.18986974,0.00038582,120]
[365243754,1749561919479,435.45389721,0.00038586,120]
[365243755,1749561919656,3803.83624566,9e-05,2]
[365243756,1749561920344,1079.20614514,0.00038586,120]
[365243757,1749561923360,1694.9654496,0.00038586,120]
[365243758,1749561928276,433.93817595,0.00023,120]
[365243759,1749561938112,278.19152428,0.00038586,120]
[365243760,1749561941845,587.52552049,0.00038586,120]
[365243761,1749561941902,514.32442756,0.00038586,120]
[365243762,1749561944080,1512.94549571,0.00038586,120]
[365243763,1749561945081,702.31081915,0.00038586,120]
[365243764,1749561961319,407.86132048,0.00038586,90]
[365243765,1749561962898,250.0,0.00038586,60]
[365243766,1749561963612,271.04464064,0.00038586,120]
[365243767,1749561965810,350.332513,0.00038586,120]
[365243768,1749561966248,1529.24049392,0.00038586,120]
[365243769,1749561968879,231.87848311,0.00038586,120]
[365243770,1749561970259,168.77062297,0.00038586,60]
[365243771,1749561970623,233.81850019,0.00038586,120]
[365243772,1749561971176,631.78,0.00015888,2]
[365243773,1749561974058,239.16534678,0.00038586,60]
[365243774,1749561975109,1051.63215971,0.00038586,120]
[365243775,1749561977148,1812.99550765,0.00038586,120]
[365243776,1749561980547,182.41884128,0.00038586,120]
[365243777,1749561981437,1045.41375028,0.00038586,120]
[365243778,1749561982468,657.06033801,0.00038586,120]
[365243779,1749561983106,167000.0,0.00038586,60]
[365243780,1749561983989,250.0,0.00038586,60]
[365243781,1749561984604,233.65995126,0.00038586,120]
[365243782,1749561988672,890.38055822,0.00038586,120]